fUSD/lending_fUSD_20240223
["ID","MTS","AMOUNT","RATE_DAILY","PERIOD"]
[314999951,1708723834604,-153.71,0.000362,3]
[314999952,1708723834614,-222.67,0.000362,3]
[314999953,1708723834623,-222.67,0.000362,3]
[314999954,1708723834632,-222.67,0.000362,3]
[314999955,1708723834642,-222.67,0.000362,3]
[314999956,1708723834651,-222.67,0.000362,3]
[314999957,1708723834660,-222.67,0.000362,3]
[314999958,1708723834670,-222.67,0.000362,3]
[314999959,1708723834678,-222.67,0.000362,3]
[314999960,1708723834687,-222.67,0.000362,3]
[314999961,1708723834696,-222.67,0.000362,3]
[314999962,1708723834705,-222.67,0.000362,3]
[314999963,1708723834714,-222.67,0.000362,3]
[314999964,1708723834723,-222.67,0.000362,3]
[314999965,1708723834732,-222.67,0.000362,3]
[314999966,1708723834741,-222.67,0.000362,3]
[314999967,1708723834750,-222.67,0.000362,3]
[314999968,1708723834760,-222.67,0.000362,3]
[314999969,1708723834769,-222.67,0.000362,3]
[314999970,1708723834779,-222.67,0.000362,3]
[314999971,1708723834788,-222.67,0.000362,3]
[314999972,1708723834797,-1458.07,0.00036222,2]
[314999973,1708723834806,-150.0,0.00036337,2]
[314999974,1708723834815,-159.04,0.00036389,2]
[314999975,1708723834825,-1458.07,0.000364,2]
[314999976,1708723834835,-179.0,0.00036411,5]
[314999977,1708723834844,-397.96457635,0.0003644,2]
[314999978,1708723834854,-4948.88599179,0.00036472,10]
[314999979,1708723834862,-5007.78258315,0.00036477,8]
[314999980,1708723834873,-2599.43218764,0.00036482,2]
[314999981,1708723834882,-8534.63064737,0.00036482,2]
[314999982,1708723834891,-151.92,0.00036485,2]
[314999983,1708723834899,-1458.07,0.00036577,2]
[314999984,1708723834909,-4948.88599179,0.00036735,10]
[314999985,1708723834918,-1458.07,0.00036755,2]
[314999986,1708723834926,-397.96457635,0.00036831,2]
[314999987,1708723834936,-168.75267509,0.00036844,7]
[314999988,1708723834944,-159.40627798,0.00036913,3]
[314999989,1708723834953,-1458.07,0.00036932,2]
[314999990,1708723834963,-156.3052614,0.00036934,7]
[314999991,1708723834972,-4948.88599179,0.00036975,10]
[314999992,1708723834981,-4948.88599179,0.0003698,10]
[314999993,1708723834990,-500.0,0.00036984,2]
[314999994,1708723834999,-500.0,0.00036985,10]
[314999995,1708723835008,-450.0,0.00036985,2]
[314999996,1708723835017,-500.0,0.00036985,2]
[314999997,1708723835026,-500.0,0.00036985,2]
[314999998,1708723835035,-500.0,0.00036985,2]
[314999999,1708723835044,-500.0,0.00036985,2]
[315000000,1708723835054,-500.0,0.00036985,2]
[315000001,1708723835063,-500.0,0.00036985,2]
[315000002,1708723835073,-500.0,0.00036985,2]
[315000003,1708723835082,-500.0,0.00036985,2]
[315000004,1708723835091,-500.0,0.00036985,2]
[315000005,1708723835100,-500.0,0.00036985,2]
[315000006,1708723835110,-500.0,0.00036985,2]
[315000007,1708723835119,-500.0,0.00036985,2]
[315000008,1708723835128,-500.0,0.00036985,2]
[315000009,1708723835138,-500.0,0.00036985,2]
[315000010,1708723835147,-500.0,0.00036985,2]
[315000011,1708723835156,-500.0,0.00036985,2]
[315000012,1708723835165,-500.0,0.00036985,2]
[315000013,1708723835174,-500.0,0.00036985,2]
[315000014,1708723835367,-500.0,0.00036985,2]
[315000015,1708723835381,-500.0,0.00036985,2]
[315000016,1708723835391,-500.0,0.00036985,2]
[315000017,1708723835401,-500.0,0.00036985,2]
[315000018,1708723835414,-500.0,0.00036985,2]
[315000019,1708723835423,-500.0,0.00036985,2]
[315000020,1708723835432,-500.0,0.00036985,2]
[315000021,1708723835441,-500.0,0.00036985,2]
[315000022,1708723835451,-500.0,0.00036985,2]
[315000023,1708723835460,-500.0,0.00036985,2]
[315000024,1708723835471,-500.0,0.00036985,2]
[315000025,1708723835481,-500.0,0.00036985,2]
[315000026,1708723835492,-500.0,0.00036985,2]
[315000027,1708723835502,-500.0,0.00036985,2]
[315000028,1708723835511,-500.0,0.00036985,2]
[315000029,1708723835520,-500.0,0.00036985,2]
[315000030,1708723835530,-500.0,0.00036985,2]
[315000031,1708723835539,-500.0,0.00036985,2]
[315000032,1708723835548,-500.0,0.00036985,2]
[315000033,1708723835558,-500.0,0.00036985,2]
[315000034,1708723835567,-500.0,0.00036985,2]
[315000035,1708723835577,-500.0,0.00036985,2]
[315000036,1708723835587,-500.0,0.00036985,2]
[315000037,1708723835596,-500.0,0.00036985,2]
[315000038,1708723835606,-500.0,0.00036985,2]
[315000039,1708723835615,-500.0,0.00036985,2]
[315000040,1708723835625,-500.0,0.00036986,2]
[315000041,1708723835634,-500.0,0.00036986,2]
[315000042,1708723835643,-500.0,0.00036986,2]
[315000043,1708723835653,-666.0,0.00036986,2]
[315000044,1708723835663,-9897.77198358,0.0003699,10]
[315000045,1708723835672,-251.3586708,0.00037,4]
[315000046,1708723835682,-263.84391669,0.00037,2]
[315000047,1708723835691,-4000.0,0.00037,2]
[315000048,1708723835701,-155.85963337,0.00037028,7]
[315000049,1708723835711,-4948.88599179,0.00037055,10]
[315000050,1708723835720,-4948.88599179,0.00037065,10]
[315000051,1708723835729,-10000.0,0.00037075,2]
[315000052,1708723835739,-4948.88599179,0.000371,10]
[315000053,1708723835749,-1458.07,0.0003711,2]
[315000054,1708723835758,-157.08374947,0.00037142,7]
[315000055,1708723835768,-150.0,0.00037153,2]
[315000056,1708723835778,-150.0,0.00037156,2]
[315000057,1708723835787,-150.0,0.00037165,2]
[315000058,1708723835797,-150.0,0.00037203,2]
[315000059,1708723835806,-150.0,0.00037207,2]
[315000060,1708723835816,-397.96457635,0.00037223,2]
[315000061,1708723835825,-258.46318169,0.00037241,2]
[315000062,1708723835834,-150.0,0.00037323,2]
[315000063,1708723835844,-150.0,0.00037324,2]
[315000064,1708723835854,-5007.78258315,0.00037332,8]
[315000065,1708723835863,-150.0,0.00037377,2]
[315000066,1708723835873,-150.0,0.0003739,2]
[315000067,1708723835882,-1835.4,0.00037397,2]
[315000068,1708723835892,-406.47,0.00037397,2]
[315000069,1708723835901,-406.47,0.00037397,2]
[315000070,1708723835910,-311.71,0.00037397,2]
[315000071,1708723835919,-150.0,0.00037421,2]
[315000072,1708723835929,-150.0,0.00037426,2]
[315000073,1708723835938,-150.0,0.00037457,2]
[315000074,1708723835948,-150.0,0.00037462,2]
[315000075,1708723835957,-150.0,0.00037479,2]
[315000076,1708723835967,-151.02406,0.00037498,38]
[315000077,1708723835977,-151.02406,0.00037498,38]
[315000078,1708723835986,-151.02406,0.00037498,38]
[315000079,1708723835996,-151.02406,0.00037498,38]
[315000080,1708723836006,-151.02406,0.00037498,38]
[315000081,1708723836016,-151.02406,0.00037498,38]
[315000082,1708723836025,-151.02406,0.00037498,38]
[315000083,1708723836035,-151.02406,0.00037498,38]
[315000084,1708723836044,-151.02406,0.00037498,38]
[315000085,1708723836053,-151.02406,0.00037498,38]
[315000086,1708723836063,-151.02406,0.00037498,38]
[315000087,1708723836072,-151.02406,0.00037498,38]
[315000088,1708723836082,-151.02406,0.00037498,38]
[315000089,1708723836092,-151.02406,0.00037498,38]
[315000090,1708723836101,-151.02406,0.00037498,38]
[315000091,1708723836110,-150.0,0.00037506,2]
[315000092,1708723836120,-150.0,0.00037516,2]
[315000093,1708723836129,-526.31329931,0.00037552,30]
[315000094,1708723836139,-4368.78569998,0.00037553,30]
[315000095,1708723836148,-150.0,0.00037561,2]
[315000096,1708723836157,-484.3271022,0.00037563,30]
[315000097,1708723836167,-200.54258887,0.00037566,30]
[315000098,1708723836176,-526.31329931,0.00037567,30]
[315000099,1708723836187,-526.31329931,0.00037572,30]
[315000100,1708723836197,-200.54258887,0.00037577,30]
[315000101,1708723836207,-150.0,0.0003758,2]
[315000102,1708723836216,-4948.88599179,0.0003758,10]
[315000103,1708723836225,-200.54258887,0.00037581,30]
[315000104,1708723836235,-619.87626223,0.00037588,12]
[315000105,1708723836244,-737.84,0.0003759,2]
[315000106,1708723836253,-159.04,0.00037591,2]
[315000107,1708723836263,-153.71,0.000376,3]
[315000108,1708723836272,-153.71,0.000376,3]
[315000109,1708723836282,-222.67,0.000376,3]
[315000110,1708723836292,-222.67,0.000376,3]
[315000111,1708723836303,-222.67,0.000376,3]
[315000112,1708723836313,-222.67,0.000376,3]
[315000113,1708723836323,-222.67,0.000376,3]
[315000114,1708723836333,-222.67,0.000376,3]
[315000115,1708723836343,-222.67,0.000376,3]
[315000116,1708723836353,-222.67,0.000376,3]
[315000117,1708723836363,-222.67,0.000376,3]
[315000118,1708723836374,-222.67,0.000376,3]
[315000119,1708723836384,-222.67,0.000376,3]
[315000120,1708723836394,-222.67,0.000376,3]
[315000121,1708723836404,-222.67,0.000376,3]
[315000122,1708723836415,-222.67,0.000376,3]
[315000123,1708723836425,-222.67,0.000376,3]
[315000124,1708723836434,-222.67,0.000376,3]
[315000125,1708723836444,-222.67,0.000376,3]
[315000126,1708723836454,-222.67,0.000376,3]
[315000127,1708723836464,-222.67,0.000376,3]
[315000128,1708723836473,-222.67,0.000376,3]
[315000129,1708723836483,-150.0,0.00037607,2]
[315000130,1708723836493,-150.0,0.00037609,2]
[315000131,1708723836502,-397.96457635,0.00037615,2]
[315000132,1708723836511,-150.0,0.00037616,2]
[315000133,1708723836521,-4368.78569998,0.00037617,30]
[315000134,1708723836530,-4368.78569998,0.00037623,30]
[315000135,1708723836540,-200.54258887,0.00037645,30]
[315000136,1708723836549,-484.3271022,0.00037651,30]
[315000137,1708723836559,-484.3271022,0.00037654,30]
[315000138,1708723836568,-484.3271022,0.00037654,30]
[315000139,1708723836579,-150.0,0.00037657,2]
[315000140,1708723836589,-150.0,0.0003766,2]
[315000141,1708723836598,-154.16931546,0.00037662,7]
[315000142,1708723836608,-180.0,0.00037671,2]
[315000143,1708723836618,-4368.78569998,0.00037678,30]
[315000144,1708723836627,-526.31329931,0.00037688,30]
[315000145,1708723836637,-200.54258887,0.00037689,30]
[315000146,1708723836646,-4368.78569998,0.00037692,30]
[315000147,1708723836655,-484.3271022,0.00037695,30]
[315000148,1708723836664,-526.31329931,0.00037699,30]
[315000149,1708723836674,-165.11170113,0.00037717,7]
[315000150,1708723836684,-984.17,0.00037719,2]
[315000151,1708723836693,-150.0,0.00037729,2]
[315000152,1708723836702,-151.0,0.00037731,2]
[315000153,1708723836712,-250.49088,0.00037731,2]
[315000154,1708723836722,-301.75168261,0.00037731,2]
[315000155,1708723836731,-4948.88599179,0.00037755,10]
[315000156,1708723836741,-2599.43218764,0.00037765,2]
[315000157,1708723836751,-8534.63064737,0.00037765,2]
[315000158,1708723836762,-150.0,0.00037766,2]
[315000159,1708723836772,-150.0,0.00037781,2]
[315000160,1708723836782,-156.3052614,0.00037784,7]
[315000161,1708723836792,-151.02406,0.00037798,39]
[315000162,1708723836802,-151.02406,0.00037798,39]
[315000163,1708723836814,-151.02406,0.00037798,39]
[315000164,1708723836824,-151.02406,0.00037798,39]
[315000165,1708723836834,-151.02406,0.00037798,39]
[315000166,1708723836844,-151.02406,0.00037798,39]
[315000167,1708723836855,-151.02406,0.00037798,39]
[315000168,1708723836864,-150.0,0.00037823,2]
[315000169,1708723836875,-4948.88599179,0.00037848,10]
[315000170,1708723836885,-150.0,0.00037849,2]
[315000171,1708723836894,-150.0,0.00037853,2]
[315000172,1708723836903,-2721.95345154,0.00037858,10]
[315000173,1708723836912,-2721.95345152,0.00037858,10]
[315000174,1708723836921,-150.0,0.00037896,2]
[315000175,1708723836931,-200.0,0.000379,11]
[315000176,1708723836940,-98688.609,0.000379,3]
[315000177,1708723836949,-150.0,0.00037915,2]
[315000178,1708723836958,-150.0,0.00037925,2]
[315000179,1708723836967,-150.0,0.00037939,2]
[315000180,1708723836976,-4948.88599179,0.00037971,10]
[315000181,1708723836986,-4948.88599179,0.0003798,10]
[315000182,1708723836995,-2437.84405797,0.00037981,2]
[315000183,1708723837005,-9897.77198358,0.0003799,10]
[315000184,1708723837014,-2000.0,0.00038,4]
[315000185,1708723837024,-16993.57581157,0.00038,2]
[315000186,1708723837034,-216.0,0.00038,2]
[315000187,1708723837043,-150.0,0.00038,2]
[315000188,1708723837052,-155.0,0.00038,2]
[315000189,1708723837062,-397.96457635,0.00038007,2]
[315000190,1708723837071,-150.0,0.00038026,2]
[315000191,1708723837080,-150.0,0.0003805,2]
[315000192,1708723837089,-300.0,0.00038054,2]
[315000193,1708723837099,-150.0,0.00038068,2]
[315000194,1708723837108,-500.0,0.00038081,10]
[315000195,1708723837117,-150.0,0.00038087,2]
[315000196,1708723837126,-619.87626221,0.00038103,13]
[315000197,1708723837135,-1296.03982519,0.00038105,2]
[315000198,1708723837145,-150.0,0.00038108,2]
[315000199,1708723837155,-165.11170113,0.00038134,7]
[315000200,1708723837164,-150.0,0.00038136,2]
[315000201,1708723837173,-150.0,0.0003814,2]
[315000202,1708723837182,-150.0,0.00038146,2]
[315000203,1708723837191,-150.0,0.00038147,2]
[315000204,1708723837201,-150.0,0.00038154,2]
[315000205,1708723837210,-150.0,0.00038168,2]
[315000206,1708723837220,-5007.78258315,0.00038188,8]
[315000207,1708723837231,-150.0,0.0003819,2]
[315000208,1708723837240,-150.0,0.00038194,2]
[315000209,1708723837250,-4948.88599179,0.00038196,10]
[315000210,1708723837259,-151.02406,0.00038198,38]
[315000211,1708723837268,-151.02406,0.00038198,38]
[315000212,1708723837278,-151.02406,0.00038198,38]
[315000213,1708723837287,-151.02406,0.00038198,38]
[315000214,1708723837296,-151.02406,0.00038198,38]
[315000215,1708723837305,-151.92,0.00038202,2]
[315000216,1708723837314,-5000.0,0.00038206,3]
[315000217,1708723837322,-150.0,0.00038214,2]
[315000218,1708723837331,-156.321914,0.00038219,7]
[315000219,1708723837341,-150.0,0.00038227,2]
[315000220,1708723837351,-1026.3672741,0.00038228,30]
[315000221,1708723837361,-150.0,0.00038231,2]
[315000222,1708723837372,-156.30526141,0.00038241,7]
[315000223,1708723837384,-4948.88599179,0.00038243,10]
[315000224,1708723837393,-4798.15613544,0.00038253,2]
[315000225,1708723837405,-150.0,0.00038273,2]
[315000226,1708723837415,-792077.28365291,0.0003828,2]
[315000227,1708723837571,-336345.19574611,0.0003828,2]
[315000228,1708723837585,-146920.75861738,0.0003828,2]
[315000230,1708723838171,-849.0,0.00033306,2]
[315000231,1708723838180,-210.53492,0.00033306,2]
[315000232,1708723838228,-41.68108,0.00033306,2]
[315000233,1708723838238,-151.0,0.00036426,2]
[315000234,1708723838247,-500.0,0.00036985,2]
[315000235,1708723838257,-75.09929497,0.00036985,2]
[315000236,1708723838397,-424.90070503,0.00036985,2]
[315000237,1708723838411,-500.0,0.00036985,2]
[315000238,1708723838420,-500.0,0.00036985,2]
[315000239,1708723838430,-500.0,0.00036985,2]
[315000240,1708723838439,-500.0,0.00036985,2]
[315000241,1708723838449,-500.0,0.00036985,2]
[315000242,1708723838458,-500.0,0.00036985,2]
[315000243,1708723838467,-500.0,0.00036985,2]
[315000244,1708723838477,-500.0,0.00036985,2]
[315000245,1708723838487,-500.0,0.00036985,2]
[315000246,1708723838496,-500.0,0.00036985,2]
[315000247,1708723838505,-500.0,0.00036985,2]
[315000248,1708723838515,-32760.21207,0.00037552,30]
[315000249,1708723838524,-32760.21207,0.00037561,30]
[315000250,1708723838533,-32760.21207,0.00037595,30]
[315000251,1708723838543,-32760.21207,0.0003761,30]
[315000252,1708723838553,-32760.21207,0.00037659,30]
[315000253,1708723838562,-821753.11836027,0.0003828,4]
[315000255,1708723838571,-162.0,0.0003828,5]
[315000256,1708723838581,-2069509.55477004,0.0003828,2]
[315000260,1708723840886,-1147.45243845,0.0003828,2]
[315000261,1708723840943,-789.926553,0.0003828,2]
[315000262,1708723841662,-823599.04637483,0.0003828,2]
[315000263,1708723841671,-150.0,0.00038286,2]
[315000264,1708723841680,-150.0,0.00038296,2]
[315000265,1708723841689,-150.0,0.00038299,2]
[315000266,1708723841698,-150.0,0.00038327,2]
[315000267,1708723841707,-98688.609,0.00038332,3]
[315000268,1708723841717,-150.0,0.00038334,2]
[315000269,1708723841726,-4948.88599179,0.00038336,10]
[315000270,1708723841735,-4948.88599179,0.00038342,10]
[315000271,1708723841744,-10000.0,0.00038352,2]
[315000272,1708723841753,-4100.04,0.00038356,15]
[315000273,1708723841762,-302.0,0.00038365,4]
[315000274,1708723841772,-1000.0,0.00038386,2]
[315000276,1708723841781,-397.96457635,0.00038398,2]
[315000278,1708723841790,-150.0,0.00038411,2]
[315000280,1708723841799,-150.0,0.00038422,2]
[315000282,1708723841808,-150.0,0.00038433,2]
[315000284,1708723841817,-150.0,0.00038434,2]
[315000286,1708723841826,-4948.88599179,0.00038456,10]
[315000288,1708723841835,-203.0,0.00038464,9]
[315000290,1708723841844,-150.0,0.00038464,2]
[315000292,1708723841853,-150.0,0.00038466,2]
[315000294,1708723841863,-150.0,0.00038469,2]
[315000296,1708723841873,-155.21572,0.00038469,2]
[315000298,1708723841882,-150.0,0.00038469,2]
[315000300,1708723841891,-150.0,0.00038469,2]
[315000302,1708723841900,-151.98417,0.00038469,2]
[315000304,1708723841909,-150.0,0.00038479,2]
[315000306,1708723841918,-1296.03982519,0.0003848,2]
[315000308,1708723841927,-154.16931549,0.00038498,7]
[315000309,1708723841936,-151.02406,0.00038498,38]
[315000311,1708723841945,-151.02406,0.00038498,38]
[315000314,1708723841955,-151.02406,0.00038498,38]
[315000315,1708723841964,-151.02406,0.00038498,38]
[315000317,1708723841973,-151.02406,0.00038498,39]
[315000319,1708723841984,-151.02406,0.00038498,39]
[315000321,1708723841993,-151.02406,0.00038498,39]
[315000324,1708723842003,-151.02406,0.00038498,39]
[315000325,1708723842012,-151.02406,0.00038498,39]
[315000328,1708723842021,-151.02406,0.00038498,39]
[315000329,1708723842031,-151.02406,0.00038498,39]
[315000331,1708723842041,-165.11170116,0.0003853,7]
[315000334,1708723842050,-800.0,0.00038547,5]
[315000335,1708723842059,-150.0,0.00038548,2]
[315000338,1708723842068,-150.0,0.0003859,2]
[315000339,1708723842077,-153.77814043,0.00038611,2]
[315000341,1708723842087,-22609.59851198,0.00038612,2]
[315000343,1708723842096,-300.0,0.00038615,2]
[315000346,1708723842105,-619.87626221,0.00038617,13]
[315000348,1708723842114,-4948.88599179,0.00038619,10]
[315000349,1708723842124,-24744.429959,0.0003862,10]
[315000350,1708723842133,-413.01,0.0003863,2]
[315000352,1708723842142,-423.71,0.0003863,2]
[315000354,1708723842152,-344.39,0.0003863,2]
[315000356,1708723842161,-344.39,0.0003863,2]
[315000358,1708723842170,-413.01,0.0003863,2]
[315000360,1708723842179,-423.71,0.0003863,2]
[315000362,1708723842188,-416.95,0.0003863,2]
[315000364,1708723842198,-338.88,0.0003863,2]
[315000366,1708723842208,-410.85,0.0003863,2]
[315000368,1708723842217,-396.15,0.0003863,2]
[315000369,1708723842226,-200.0,0.00038632,5]
[315000371,1708723842235,-800.0,0.00038632,5]
[315000373,1708723842244,-200.0,0.00038632,20]
[315000375,1708723842253,-500.0,0.00038632,20]
[315000377,1708723842263,-530.13,0.00038639,4]
[315000379,1708723842272,-500.0,0.00038639,4]
[315000381,1708723842281,-500.0,0.00038639,4]
[315000383,1708723842290,-500.0,0.00038639,4]
[315000385,1708723842299,-500.0,0.00038639,4]
[315000387,1708723842308,-516.00983628,0.00038639,4]
[315000389,1708723842317,-526.90554884,0.00038639,4]
[315000391,1708723842325,-500.0,0.00038639,4]
[315000393,1708723842334,-500.0,0.00038639,4]
[315000395,1708723842344,-500.0,0.00038639,4]
[315000397,1708723842353,-500.0,0.00038639,4]
[315000399,1708723842362,-500.0,0.00038639,4]
[315000401,1708723842371,-522.03018914,0.00038639,4]
[315000403,1708723842382,-500.0,0.00038639,4]
[315000405,1708723842391,-529.94451277,0.00038639,4]
[315000424,1708723842568,-500.0,0.00038639,4]
[315000426,1708723842578,-500.0,0.00038639,4]
[315000428,1708723842588,-568.91777567,0.00038639,4]
[315000430,1708723842598,-500.0,0.00038639,4]
[315000432,1708723842607,-500.0,0.00038639,4]
[315000434,1708723842617,-500.0,0.00038639,4]
[315000436,1708723842628,-588.93837155,0.00038639,4]
[315000438,1708723842638,-500.0,0.00038639,2]
[315000440,1708723842647,-523.64831472,0.00038639,4]
[315000442,1708723842657,-500.0,0.00038639,4]
[315000444,1708723842666,-500.0,0.00038639,4]
[315000446,1708723842675,-500.0,0.00038639,4]
[315000448,1708723842685,-518.51072397,0.00038639,4]
[315000450,1708723842694,-500.0,0.00038639,4]
[315000452,1708723842703,-500.0,0.00038639,4]
[315000454,1708723842712,-500.0,0.00038639,4]
[315000456,1708723842721,-509.91902597,0.00038639,4]
[315000458,1708723842730,-515.87392645,0.00038639,4]
[315000460,1708723842740,-500.0,0.00038639,4]
[315000462,1708723842749,-500.0,0.00038639,4]
[315000464,1708723842758,-500.0,0.00038639,4]
[315000466,1708723842769,-423.98475019,0.00038639,4]
[315000468,1708723842778,-592.10407321,0.00038639,4]
[315000470,1708723842788,-500.0,0.00038639,2]
[315000472,1708723842797,-500.0,0.00038639,4]
[315000474,1708723842806,-500.0,0.00038639,4]
[315000476,1708723842816,-500.0,0.00038639,4]
[315000478,1708723842825,-600.97673879,0.00038639,4]
[315000480,1708723842834,-549.33796035,0.00038639,4]
[315000482,1708723842843,-530.26411858,0.00038639,4]
[315000484,1708723842851,-500.0,0.00038639,4]
[315000486,1708723842861,-500.0,0.00038639,4]
[315000488,1708723842870,-500.0,0.00038639,4]
[315000490,1708723842879,-500.0,0.00038639,4]
[315000492,1708723842888,-500.0,0.00038639,4]
[315000494,1708723842897,-500.0,0.00038639,4]
[315000496,1708723842906,-500.0,0.00038639,4]
[315000498,1708723842915,-497.645855,0.00038639,4]
[315000500,1708723842924,-6892.55022949,0.0003864,2]
[315000502,1708723842933,-150.0,0.00038653,2]
[315000504,1708723842942,-150.0,0.00038658,2]
[315000506,1708723842952,-300.0,0.00038682,2]
[315000508,1708723842961,-100000.0,0.000387,2]
[315000510,1708723842970,-800.0,0.00038717,5]
[315000512,1708723842979,-598.03,0.0003874,2]
[315000514,1708723842988,-98688.609,0.00038747,4]
[315000516,1708723842997,-153.22384175,0.00038752,2]
[315000518,1708723843006,-7173.42803561,0.00038757,12]
[315000520,1708723843016,-150.0,0.0003876,2]
[315000521,1708723843025,-150.0,0.00038762,2]
[315000523,1708723843035,-25062.2992687,0.0003877,5]
[315000525,1708723843044,-155.64218081,0.00038772,7]
[315000527,1708723843054,-500.0,0.00038776,4]
[315000529,1708723843063,-500.0,0.00038776,4]
[315000531,1708723843072,-592.04569112,0.00038776,4]
[315000533,1708723843081,-500.0,0.00038776,4]
[315000535,1708723843090,-521.99089622,0.00038776,4]
[315000537,1708723843099,-523.46252412,0.00038776,4]
[315000539,1708723843109,-500.0,0.00038776,4]
[315000541,1708723843118,-500.0,0.00038776,4]
[315000543,1708723843128,-470.87487631,0.00038776,4]
[315000545,1708723843137,-500.0,0.00038776,2]
[315000547,1708723843147,-500.0,0.00038776,4]
[315000549,1708723843156,-500.0,0.00038776,4]
[315000551,1708723843165,-500.0,0.00038776,4]
[315000553,1708723843175,-332.86666873,0.00038776,4]
[315000555,1708723843184,-150.0,0.00038787,2]
[315000557,1708723843193,-366.41568778,0.00038789,2]
[315000559,1708723843203,-13145.27072227,0.00038789,2]
[315000562,1708723843212,-3623.01274851,0.00038789,2]
[315000564,1708723843221,-1761.88579162,0.00038789,2]
[315000566,1708723843231,-345.51405222,0.00038789,2]
[315000568,1708723843239,-206.29928259,0.00038789,2]
[315000570,1708723843249,-319.20234303,0.00038789,2]
[315000572,1708723843258,-397.96457635,0.0003879,2]
[315000574,1708723843268,-159.04,0.00038793,2]
[315000576,1708723843277,-151.02406,0.00038798,38]
[315000578,1708723843286,-151.02406,0.00038798,38]
[315000580,1708723843296,-151.02406,0.00038798,38]
[315000582,1708723843305,-151.02406,0.00038798,38]
[315000584,1708723843315,-151.02406,0.00038798,38]
[315000586,1708723843324,-151.02406,0.00038798,38]
[315000588,1708723843333,-151.02406,0.00038798,38]
[315000590,1708723843343,-13214.92486537,0.000388,2]
[315000592,1708723843352,-150.0,0.000388,8]
[315000594,1708723843362,-150.0,0.00038802,2]
[315000597,1708723843371,-150.0,0.00038803,2]
[315000599,1708723843383,-16990.0,0.00038819,2]
[315000601,1708723843392,-150.0,0.00038821,2]
[315000602,1708723843402,-150.0,0.00038833,2]
[315000604,1708723843416,-150.0,0.00038847,2]
[315000607,1708723843426,-150.0,0.00038852,2]
[315000608,1708723843435,-21530.50325425,0.00038856,2]
[315000611,1708723843444,-150.0,0.00038857,2]
[315000612,1708723843453,-1000.0,0.00038857,30]
[315000614,1708723843463,-3000.0,0.00038858,2]
[315000616,1708723843472,-7173.42803552,0.00038861,12]
[315000618,1708723843481,-150.0,0.00038864,2]
[315000620,1708723843492,-167.49352654,0.00038864,2]
[315000622,1708723843502,-169.69369191,0.00038864,2]
[315000624,1708723843513,-300.0,0.0003887,2]
[315000626,1708723843522,-150.0,0.00038877,7]
[315000628,1708723843531,-150.0,0.00038877,7]
[315000630,1708723843541,-150.0,0.00038877,7]
[315000632,1708723843551,-150.0,0.00038877,7]
[315000634,1708723843560,-150.0,0.00038877,7]
[315000636,1708723843570,-150.0,0.00038877,7]
[315000638,1708723843580,-150.0,0.00038877,7]
[315000640,1708723843590,-282.00068139,0.00038877,7]
[315000642,1708723843599,-394754.436,0.00038879,4]
[315000645,1708723843609,-150.0,0.00038882,7]
[315000646,1708723843619,-150.0,0.00038888,7]
[315000648,1708723843630,-25911.60120367,0.00038889,2]
[315000650,1708723843639,-151.0,0.00038889,14]